[Event "FIDE World Rapid-ch Open 2018"]
[White "AL-Sayed, Mohammed"]
[Black "Ponkratov, Pavel"]
[Site "St. Petersburg"]
[Round "1.59"]
[Annotator "ChessBase"]
[Result "1-0"]
[Date "2018.12.26"]
[WhiteElo "2484"]
[BlackElo "2630"]
[PlyCount "105"]
[TimeControl "900+10"]

1. e4 {[%emt 0:0:0]} e6 {[%emt 0:0:0]} 2. d3 {[%emt 0:0:5]} d5 {[%emt 0:0:0]} 3. Qe2 {[%emt 0:0:4]} Nf6 {[%emt 0:0:16]} 4. Nf3 {[%emt 0:0:18]} Nc6 {[%emt 0:0:2]} 5. e5 {[%emt 0:1:12]} Nd7 {[%emt 0:0:3]} 6. g3 {[%emt 0:0:10]
} h6 {[%emt 0:1:48]} 7. h4 {[%emt 0:0:13]} f6 {[%emt 0:0:22]} 8. exf6 {[%emt 0:0:42]} Qxf6 {[%emt 0:0:5]} 9. Bg2 {[%emt 0:1:25]} Bc5 {[%emt 0:0:13]
} 10. 0-0 {[%emt 0:0:24]} 0-0 {[%emt 0:0:2]} 11. c4 {[%emt 0:0:0]} Nde5 {[%emt 0:2:59]} 12. Nbd2 {[%emt 0:0:13]} Kh8 {[%emt 0:1:8]} 13. Nxe5 {[%emt 0:2:1]} Nxe5 {[%emt 0:0:6]} 14. Nb3 {[%emt 0:0:7]} Bd6 {[%emt 0:4:15]
} 15. c5 {[%emt 0:0:4]} Be7 {[%emt 0:0:1]} 16. Bf4 {[%emt 0:0:0]} Nd7 {[%emt 0:0:31]} 17. Bxc7 {[%emt 0:0:42]} Nxc5 {[%emt 0:0:23]} 18. Be5 {[%emt 0:0:8]} Qg6 {[%emt 0:0:8]} 19. Nxc5 {[%emt 0:2:0]} Bxc5 {[%emt 0:0:1]
} 20. d4 {[%emt 0:0:43]} Bb6 {[%emt 0:0:13]} 21. h5 {[%emt 0:0:0]} Qg5 {[%emt 0:0:9]} 22. a4 {[%emt 0:1:5]} Bd7 {[%emt 0:0:14]} 23. a5 {[%emt 0:0:14]} Bd8 {[%emt 0:0:1]} 24. Ra3 {[%emt 0:0:10]} a6 {[%emt 0:0:0]} 25. f4 {[%emt 0:0:18]} Qe7 {[%emt 0:0:15]} 26. Qg4 {[%emt 0:0:33]} Rc8 {[%emt 0:0:30]} 27. Qg6 {[%emt 0:0:24]} Kg8 {[%emt 0:0:2]} 28. f5 {[%emt 0:0:40]
} Qg5 {[%emt 0:2:10]} 29. Rb3 {[%emt 0:0:24]} Qxg6 {[%emt 0:0:0]} 30. hxg6 {[%emt 0:0:34]} Bb5 {[%emt 0:0:12]} 31. Rf2 {[%emt 0:0:41]} Bxa5 {[%emt 0:0:53]} 32. Bd6 {[%emt 0:1:54]} Rfd8 {[%emt 0:0:41]} 33. Be7 {[%emt 0:0:14]
} Rd7 {[%emt 0:0:20]} 34. f6 {[%emt 0:0:18]} gxf6 {[%emt 0:0:0]} 35. Bxf6 {[%emt 0:0:1]} Rdc7 {[%emt 0:1:6]} 36. Bh3 {[%emt 0:0:31]} Re8 {[%emt 0:0:12]} 37. Be5 {[%emt 0:0:23]} Rc1+ {[%emt 0:0:7]} 38. Kg2 {[%emt 0:0:18]
} Bc7 {[%emt 0:0:2]} 39. Rbf3 {[%emt 0:0:20]} Bxe5 {[%emt 0:0:0]} 40. dxe5 {[%emt 0:0:1]} Re1 {[%emt 0:0:7]} 41. Rf7 {[%emt 0:0:18]} Rxe5 {[%emt 0:0:8]} 42. Rxb7 {[%emt 0:0:1]} Re2 {[%emt 0:0:30]} 43. Rxe2 {[%emt 0:0:18]
} Bxe2 {[%emt 0:0:1]} 44. Rb6 {[%emt 0:0:13]} Kg7 {[%emt 0:0:0]} 45. Bxe6 {[%emt 0:0:3]} d4 {[%emt 0:0:1]} 46. Bf5 {[%emt 0:0:10]} Rd8 {[%emt 0:0:34]} 47. Rb7+ {[%emt 0:0:3]} Kf6 {[%emt 0:0:2]} 48. Rf7+ {[%emt 0:0:2]
} Ke5 {[%emt 0:0:2]} 49. g7 {[%emt 0:0:5]} Bc4 {[%emt 0:0:0]} 50. Rf8 {[%emt 0:0:5]} Rd6 {[%emt 0:0:1]} 51. Bd3 {[%emt 0:0:16]} Bd5+ {[%emt 0:0:20]} 52. Kg1 {[%emt 0:0:0]} Ba2 {[%emt 0:0:15]} 53. Rf5+ {[%emt 0:0:9]
 Kd5} 1-0

[Event "FIDE World Rapid-ch Open 2018"]
[White "Esipenko, Andrey"]
[Black "Bazeev, German"]
[Site "St. Petersburg"]
[Round "1.60"]
[Annotator "ChessBase"]
[Result "1/2-1/2"]
[Date "2018.12.26"]
[WhiteElo "2593"]
[BlackElo "2416"]
[PlyCount "54"]
[TimeControl "900+10"]

1. d4 {[%emt 0:0:0]} Nf6 {[%emt 0:0:0]} 2. Nf3 {[%emt 0:0:0]} e6 {[%emt 0:0:0]
} 3. c4 {[%emt 0:0:12]} b6 {[%emt 0:0:50]} 4. g3 {[%emt 0:0:0]} Ba6 {[%emt 0:0:4]} 5. b3 {[%emt 0:0:17]} Bb4+ {[%emt 0:0:5]} 6. Bd2 {[%emt 0:0:1]
} Be7 {[%emt 0:0:1]} 7. Bg2 Bb7 8. 0-0 {[%emt 0:0:9]} 0-0 {[%emt 0:0:1]
} 9. Nc3 {[%emt 0:0:25]} d5 {[%emt 0:0:1]} 10. Ne5 {[%emt 0:0:0]} Nbd7 {[%emt 0:1:6]} 11. Bf4 {[%emt 0:0:3]} c6 {[%emt 0:1:23]} 12. e4 {[%emt 0:0:36]} Bb4 {[%emt 0:1:29]} 13. exd5 {[%emt 0:2:6]} cxd5 {[%emt 0:1:30]
} 14. Rc1 {[%emt 0:0:10]} Bxc3 {[%emt 0:2:21]} 15. Rxc3 {[%emt 0:0:3]
} Rc8 {[%emt 0:0:3]} 16. Bg5 {[%emt 0:0:16]} h6 {[%emt 0:0:0]} 17. Nxd7 {[%emt 0:0:11]} Qxd7 {[%emt 0:0:1]} 18. Bxf6 {[%emt 0:0:12]} gxf6 {[%emt 0:0:1]} 19. Qg4+ {[%emt 0:1:52]} Kh7 {[%emt 0:0:1]} 20. Qf4 {[%emt 0:1:50]
} f5 {[%emt 0:0:15]} 21. Rfc1 {[%emt 0:1:48]} dxc4 {[%emt 0:0:0]} 22. Bxb7 {[%emt 0:0:6]} Qxb7 {[%emt 0:0:1]} 23. bxc4 {[%emt 0:0:2]} Qe4 {[%emt 0:0:28]} 24. Qd6 {[%emt 0:1:41]} Rcd8 {[%emt 0:0:33]} 25. Qa3 {[%emt 0:0:49]
} Qxd4 {[%emt 0:0:3]} 26. c5 {[%emt 0:0:14]} bxc5 {[%emt 0:0:0]} 27. Rc4 {[%emt 0:0:2]} Qd6 {[%emt 0:1:11]} 1/2-1/2

[Event "FIDE World Rapid-ch Open 2018"]
[White "Grigoriants, Sergey"]
[Black "Lomasov, Semyon"]
[Site "St. Petersburg"]
[Round "1.62"]
[Annotator "ChessBase"]
[Result "1/2-1/2"]
[Date "2018.12.26"]
[WhiteElo "2540"]
[BlackElo "2553"]
[PlyCount "39"]
[TimeControl "900+10"]

1. Nf3 {[%emt 0:0:42]} Nf6 {[%emt 0:0:0]} 2. c4 {[%emt 0:0:4]} c5 {[%emt 0:0:0]
} 3. Nc3 {[%emt 0:0:15]} Nc6 {[%emt 0:0:0]} 4. e3 {[%emt 0:0:0]} e6 {[%emt 0:0:4]} 5. d4 {[%emt 0:0:7]} d5 {[%emt 0:0:1]} 6. cxd5 {[%emt 0:1:33]
} exd5 {[%emt 0:0:8]} 7. Be2 {[%emt 0:0:4]} cxd4 {[%emt 0:0:0]} 8. Nxd4 {[%emt 0:0:7]} Bd6 {[%emt 0:0:3]} 9. 0-0 {[%emt 0:0:46]} 0-0 {[%emt 0:0:4]} 10. Nf3 {[%emt 0:0:32]} Bg4 {[%emt 0:1:50]} 11. h3 {[%emt 0:0:0]} Bh5 {[%emt 0:0:5]} 12. b3 {[%emt 0:0:15]} Rc8 {[%emt 0:3:49]} 13. Bb2 {[%emt 0:0:6]} a6 {[%emt 0:0:1]} 14. Nh4 {[%emt 0:1:1]} Bg6 {[%emt 0:0:0]} 15. Nxg6 {[%emt 0:3:55]} hxg6 {[%emt 0:0:2]} 16. Bf3 {[%emt 0:0:10]
} Be5 {[%emt 0:0:40]} 17. Rb1 {[%emt 0:0:37]} d4 {[%emt 0:2:25]} 18. exd4 {[%emt 0:3:25]
} Bxd4 {[%emt 0:0:30]} 19. Na4 {[%emt 0:1:11]} Ba7 {[%emt 0:0:0]} 20. Rc1 {[%emt 0:0:37]} 1/2-1/2

[Event "FIDE World Rapid-ch Open 2018"]
[White "Bilguun, Sumiya"]
[Black "Mchedlishvili, Mikheil"]
[Site "St. Petersburg"]
[Round "1.63"]
[Annotator "ChessBase"]
[Result "0-1"]
[Date "2018.12.26"]
[WhiteElo "2497"]
[BlackElo "2610"]
[PlyCount "98"]
[TimeControl "900+10"]

1. e4 {[%emt 0:0:0]} c5 {[%emt 0:0:0]} 2. Nf3 {[%emt 0:0:6]} e6 {[%emt 0:0:0]} 3. d4 {[%emt 0:0:20]} cxd4 {[%emt 0:0:4]} 4. Nxd4 {[%emt 0:0:4]} Nc6 {[%emt 0:0:8]} 5. Nc3 {[%emt 0:0:14]} Qc7 {[%emt 0:0:17]} 6. g3 {[%emt 0:0:15]
} a6 {[%emt 0:0:45]} 7. Bg2 {[%emt 0:0:7]} d6 {[%emt 0:0:18]} 8. Nxc6 {[%emt 0:1:19]} bxc6 {[%emt 0:0:16]} 9. 0-0 {[%emt 0:0:4]} Nf6 {[%emt 0:0:58]
} 10. Na4 {[%emt 0:0:29]} Bb7 {[%emt 0:0:22]} 11. c4 {[%emt 0:0:0]} c5 {[%emt 0:0:27]} 12. Re1 {[%emt 0:0:38]} Nd7 {[%emt 0:0:37]} 13. b3 {[%emt 0:2:2]} Be7 {[%emt 0:0:13]} 14. Bb2 {[%emt 0:1:11]} 0-0 {[%emt 0:0:0]} 15. Qd2 {[%emt 0:0:20]} Ne5 {[%emt 0:2:53]} 16. Rad1 {[%emt 0:1:3]} Rfd8 {[%emt 0:1:18]} 17. Bc3 {[%emt 0:0:18]} Nc6 {[%emt 0:0:27]} 18. Bb2 {[%emt 0:3:11]
} Rab8 {[%emt 0:0:28]} 19. Qe3 {[%emt 0:1:20]} e5 {[%emt 0:0:0]} 20. Nc3 {[%emt 0:0:16]} Nd4 {[%emt 0:0:3]} 21. Qd2 {[%emt 0:0:19]} Bf6 {[%emt 0:1:55]} 22. Nd5 Bxd5 {[%emt 0:0:3]} 23. exd5 {[%emt 0:1:50]} g6 {[%emt 0:0:54]
} 24. Bc3 {[%emt 0:0:5]} Re8 {[%emt 0:0:1]} 25. Ba5 {[%emt 0:0:0]} Qd7 {[%emt 0:0:24]} 26. b4 {[%emt 0:0:17]} Rec8 {[%emt 0:3:2]} 27. Rb1 {[%emt 0:0:33]} cxb4 {[%emt 0:0:33]} 28. Rec1 {[%emt 0:1:9]} b3 {[%emt 0:0:10]
} 29. Bb4 {[%emt 0:0:17]} Rxb4 {[%emt 0:0:15]} 30. Qxb4 {[%emt 0:0:12]
} Ne2+ {[%emt 0:0:15]} 31. Kf1 {[%emt 0:0:7]} Nxc1 {[%emt 0:0:0]} 32. Rxc1 {[%emt 0:0:7]} bxa2 {[%emt 0:0:3]} 33. Qa3 {[%emt 0:0:22]
} Bg5 {[%emt 0:0:11]} 34. Rc2 {[%emt 0:0:10]} Qg4 {[%emt 0:0:43]} 35. f3 {[%emt 0:0:11]
} Qd4 {[%emt 0:0:18]} 36. Qxa2 {[%emt 0:0:6]} Qd3+ {[%emt 0:0:0]} 37. Ke1 {[%emt 0:0:17]} Rb8 {[%emt 0:0:18]} 38. h4 {[%emt 0:0:7]} Bd8 {[%emt 0:0:15]} 39. c5 {[%emt 0:0:11]} dxc5 {[%emt 0:0:1]} 40. Rd2 {[%emt 0:0:5]
} Qe3+ {[%emt 0:0:8]} 41. Kf1 {[%emt 0:0:4]} Ba5 {[%emt 0:0:0]} 42. Re2 {[%emt 0:0:2]} Qc1+ {[%emt 0:0:8]} 43. Kf2 {[%emt 0:0:3]} Bc3 {[%emt 0:0:10]} 44. g4 {[%emt 0:0:24]} Qf4 {[%emt 0:0:33]} 45. Kg1 {[%emt 0:0:26]
} Bd4+ {[%emt 0:0:17]} 46. Kh1 {[%emt 0:0:7]} Qf6 {[%emt 0:0:0]} 47. g5 {[%emt 0:0:7]} Qf4 {[%emt 0:0:1]} 48. Re4 {[%emt 0:0:5]} Qc1+ {[%emt 0:0:1]} 49. Kh2 {[%emt 0:0:1]} Rb2 {[%emt 0:0:14]} 0-1

[Event "FIDE World Rapid-ch Open 2018"]
[White "Alekseenko, Kirill"]
[Black "Hirneise, Tobias"]
[Site "St. Petersburg"]
[Round "1.64"]
[Annotator "ChessBase"]
[Result "1-0"]
[Date "2018.12.26"]
[WhiteElo "2638"]
[BlackElo "2464"]
[PlyCount "137"]
[TimeControl "900+10"]

1. e4 {[%emt 0:1:54]} e5 {[%emt 0:0:0]} 2. Nf3 {[%emt 0:0:4]} Nc6 {[%emt 0:0:0]
} 3. Bb5 {[%emt 0:0:2]} a6 {[%emt 0:0:10]} 4. Ba4 {[%emt 0:0:0]} Nf6 {[%emt 0:0:1]} 5. 0-0 {[%emt 0:0:4]} Be7 {[%emt 0:0:8]} 6. Re1 {[%emt 0:0:6]
} b5 {[%emt 0:0:7]} 7. Bb3 {[%emt 0:0:1]} d6 {[%emt 0:0:3]} 8. c3 {[%emt 0:0:3]} 0-0 {[%emt 0:0:8]} 9. h3 {[%emt 0:0:3]} Nb8 {[%emt 0:0:10]
} 10. d4 {[%emt 0:0:5]} Nbd7 {[%emt 0:0:1]} 11. Nbd2 {[%emt 0:0:7]
} c5 {[%emt 0:0:10]} 12. d5 {[%emt 0:0:27]} c4 {[%emt 0:0:20]} 13. Bc2 {[%emt 0:0:1]} Qc7 {[%emt 0:0:19]} 14. Nf1 {[%emt 0:0:18]} Nc5 {[%emt 0:0:6]
} 15. b3 {[%emt 0:0:21]} cxb3 {[%emt 0:0:16]} 16. axb3 {[%emt 0:0:1]
} Bd7 {[%emt 0:0:1]} 17. Bd2 {[%emt 0:0:30]} Rfc8 {[%emt 0:0:0]} 18. Qb1 {[%emt 0:1:22]} a5 {[%emt 0:0:27]} 19. Ng3 {[%emt 0:0:56]} Qb7 {[%emt 0:0:33]} 20. b4 {[%emt 0:0:17]} axb4 {[%emt 0:1:42]} 21. Rxa8 {[%emt 0:0:11]
} Qxa8 {[%emt 0:0:17]} 22. cxb4 {[%emt 0:0:7]} Na4 {[%emt 0:0:0]} 23. Bd3 {[%emt 0:0:4]} Bd8 {[%emt 0:0:18]} 24. Kh2 {[%emt 0:1:7]} Bb6 {[%emt 0:0:8]} 25. Rf1 {[%emt 0:0:1]} Qa7 {[%emt 0:0:10]} 26. Be1 {[%emt 0:0:53]
} Qc7 {[%emt 0:1:5]} 27. Bd2 {[%emt 0:0:12]} Qa7 {[%emt 0:0:0]} 28. Kg1 {[%emt 0:1:34]} Rc7 {[%emt 0:1:37]} 29. Nh4 {[%emt 0:0:4]} g6 {[%emt 0:0:56]} 30. Be1 {[%emt 0:0:14]} Bd4 {[%emt 0:0:21]} 31. Nf3 {[%emt 0:0:26]
} Bc3 {[%emt 0:1:15]} 32. Kh2 {[%emt 0:0:4]} Nb6 {[%emt 0:0:0]} 33. Bxc3 {[%emt 0:0:44]} Rxc3 {[%emt 0:0:0]} 34. Ne2 {[%emt 0:0:2]} Rc8 {[%emt 0:0:15]} 35. Nd2 {[%emt 0:0:54]} Nc4 {[%emt 0:0:42]} 36. Bxc4 {[%emt 0:0:1]
} bxc4 {[%emt 0:0:1]} 37. Nc3 {[%emt 0:0:1]} Nh5 {[%emt 0:0:0]} 38. g3 {[%emt 0:0:8]} Qd4 {[%emt 0:0:49]} 39. Qc1 {[%emt 0:0:24]} Rb8 {[%emt 0:2:2]} 40. Nf3 {[%emt 0:0:11]} Qa7 {[%emt 0:0:51]} 41. Qb2 {[%emt 0:0:20]
} Qb7 {[%emt 0:0:30]} 42. Rb1 {[%emt 0:0:23]} Bb5 {[%emt 0:0:0]} 43. Kg2 {[%emt 0:0:10]} Nf6 {[%emt 0:0:8]} 44. Qd2 {[%emt 0:0:5]} Kg7 {[%emt 0:0:5]} 45. Qe3 {[%emt 0:0:11]} Ra8 {[%emt 0:0:9]} 46. Qc1 {[%emt 0:0:24]
} Bd7 {[%emt 0:1:35]} 47. b5 {[%emt 0:0:3]} Qc8 {[%emt 0:0:0]} 48. Ng1 {[%emt 0:0:34]} Rb8 {[%emt 0:0:11]} 49. Qa3 {[%emt 0:0:7]} Qc7 {[%emt 0:0:7]} 50. Qb4 {[%emt 0:0:4]} Qb6 {[%emt 0:0:11]} 51. Nf3 {[%emt 0:0:15]
} Bxh3+ {[%emt 0:0:33]} 52. Kxh3 {[%emt 0:2:13]} Qxf2 {[%emt 0:0:0]} 53. Ng1 {[%emt 0:0:1]} g5 {[%emt 0:1:0]} 54. Qb2 {[%emt 0:0:7]} g4+ {[%emt 0:0:15]} 55. Kh4 {[%emt 0:0:1]} Qb6 {[%emt 0:0:19]} 56. Qd2 {[%emt 0:1:56]
} h6 {[%emt 0:0:1]} 57. Rf1 {[%emt 0:0:1]} Qd8 {[%emt 0:0:0]} 58. Rxf6 {[%emt 0:0:4]} Qxf6+ {[%emt 0:0:16]} 59. Kxg4 {[%emt 0:0:2]} Rg8 {[%emt 0:0:11]} 60. Kh3 {[%emt 0:0:7]} Qf1+ {[%emt 0:0:2]} 61. Qg2 {[%emt 0:0:17]
} Qd3 {[%emt 0:0:3]} 62. Qf3 {[%emt 0:0:27]} Ra8 {[%emt 0:0:0]} 63. Qg4+ {[%emt 0:0:20]} Kh8 {[%emt 0:0:9]} 64. Nge2 {[%emt 0:0:14]} Ra3 {[%emt 0:0:33]} 65. b6 {[%emt 0:0:53]} Rxc3 66. Nxc3 {[%emt 0:0:1]} Qxc3 {[%emt 0:0:41]} 67. b7 {[%emt 0:0:5]} Qb2 {[%emt 0:0:12]} 68. Qc8+ {[%emt 0:0:3]
} Kg7 {[%emt 0:0:1]} 69. b8=Q {[%emt 0:0:3]} 1-0

[Event "FIDE World Rapid-ch Open 2018"]
[White "Anikonov, Dmitry"]
[Black "Potkin, Vladimir"]
[Site "St. Petersburg"]
[Round "1.65"]
[Annotator "ChessBase"]
[Result "1/2-1/2"]
[Date "2018.12.26"]
[WhiteElo "2371"]
[BlackElo "2597"]
[PlyCount "83"]
[TimeControl "900+10"]

1. d4 {[%emt 0:0:51]} Nf6 {[%emt 0:0:0]} 2. c4 {[%emt 0:0:2]} e6 {[%emt 0:0:0]} 3. Nc3 {[%emt 0:0:52]} Bb4 {[%emt 0:0:0]} 4. Qc2 {[%emt 0:0:11]} 0-0 {[%emt 0:0:5]} 5. Nf3 {[%emt 0:0:3]} c5 {[%emt 0:0:46]} 6. dxc5 {[%emt 0:0:11]
} Na6 {[%emt 0:0:7]} 7. g3 {[%emt 0:0:6]} Nxc5 {[%emt 0:0:0]} 8. Bg2 {[%emt 0:0:2]} b6 {[%emt 0:0:54]} 9. 0-0 {[%emt 0:0:46]} Bb7 {[%emt 0:0:1]
} 10. Bf4 {[%emt 0:2:10]} Nce4 {[%emt 0:2:13]} 11. Nxe4 {[%emt 0:0:57]
} Bxe4 {[%emt 0:0:6]} 12. Qb3 {[%emt 0:0:10]} Qe7 {[%emt 0:0:0]} 13. Rfd1 {[%emt 0:0:26]} Rfc8 {[%emt 0:0:18]} 14. Rac1 {[%emt 0:0:45]} Bc5 {[%emt 0:0:23]} 15. Ne5 {[%emt 0:2:9]} Bxg2 {[%emt 0:1:19]} 16. Kxg2 {[%emt 0:0:2]
} h6 {[%emt 0:0:20]} 17. Qf3 {[%emt 0:1:6]} d5 {[%emt 0:2:16]
} 18. Nd3 {[%emt 0:1:5]} Bd6 {[%emt 0:1:41]} 19. Bxd6 {[%emt 0:0:45]} Qxd6 {[%emt 0:0:2]} 20. cxd5 {[%emt 0:0:2]} Qxd5 {[%emt 0:0:16]} 21. Qxd5 {[%emt 0:0:15]
} Nxd5 {[%emt 0:0:1]} 22. e4 {[%emt 0:0:7]} Nf6 {[%emt 0:0:0]} 23. f3 {[%emt 0:0:3]} Kf8 {[%emt 0:0:2]} 24. Kf2 {[%emt 0:0:4]} Nd7 {[%emt 0:0:17]} 25. Ke2 {[%emt 0:0:23]} Ke7 {[%emt 0:0:2]} 26. b4 {[%emt 0:0:0]} b5 {[%emt 0:1:11]} 27. Rxc8 {[%emt 0:1:27]} Rxc8 {[%emt 0:0:1]} 28. Rc1 {[%emt 0:0:2]} Rxc1 {[%emt 0:0:30]} 29. Nxc1 {[%emt 0:0:2]} Ne5 {[%emt 0:0:3]
} 30. Nd3 {[%emt 0:0:11]} Nc4 {[%emt 0:0:35]} 31. Nc5 {[%emt 0:0:0]} Kd6 {[%emt 0:0:29]} 32. Nd3 {[%emt 0:0:11]} g5 {[%emt 0:0:9]} 33. h4 {[%emt 0:0:40]} f5 {[%emt 0:0:24]} 34. h5 {[%emt 0:1:2]} fxe4 {[%emt 0:0:0]} 35. fxe4 {[%emt 0:0:2]} Ne5 {[%emt 0:0:2]} 36. Nxe5 {[%emt 0:0:57]
} Kxe5 {[%emt 0:0:2]} 37. Kd3 {[%emt 0:0:1]} Kd6 {[%emt 0:0:45]} 38. g4 {[%emt 0:0:26]
} Ke5 {[%emt 0:1:23]} 39. Ke3 {[%emt 0:0:2]} a6 {[%emt 0:0:0]} 40. a3 {[%emt 0:0:1]} Kd6 {[%emt 0:0:1]} 41. Kd4 {[%emt 0:0:1]} e5+ {[%emt 0:0:2]} 42. Kd3 {[%emt 0:0:2]} 1/2-1/2

[Event "FIDE World Rapid-ch Open 2018"]
[White "Khismatullin, Denis"]
[Black "Firouzja, Alireza"]
[Site "St. Petersburg"]
[Round "1.66"]
[Annotator "ChessBase"]
[Result "0-1"]
[Date "2018.12.26"]
[WhiteElo "2621"]
[BlackElo "2607"]
[PlyCount "104"]
[TimeControl "900+10"]

1. d4 {[%emt 0:0:26]} Nf6 {[%emt 0:0:0]} 2. c4 {[%emt 0:0:17]} g6 {[%emt 0:0:0]} 3. Nf3 {[%emt 0:0:28]} Bg7 {[%emt 0:0:3]} 4. g3 {[%emt 0:0:2]} 0-0 {[%emt 0:0:7]} 5. Bg2 {[%emt 0:0:1]} d6 {[%emt 0:0:6]} 6. Nc3 {[%emt 0:0:0]} c5 {[%emt 0:0:26]} 7. 0-0 {[%emt 0:0:57]} Nc6 {[%emt 0:0:2]} 8. d5 {[%emt 0:1:8]} Na5 {[%emt 0:0:2]} 9. Nd2 {[%emt 0:0:2]} a6 {[%emt 0:0:0]} 10. Rb1 {[%emt 0:0:41]} Rb8 {[%emt 0:3:7]} 11. Qc2 {[%emt 0:1:28]} b5 {[%emt 0:0:13]} 12. cxb5 {[%emt 0:0:9]} axb5 {[%emt 0:0:4]} 13. b4 {[%emt 0:0:2]
} cxb4 {[%emt 0:0:12]} 14. Rxb4 {[%emt 0:0:1]} Bd7 {[%emt 0:0:0]} 15. Bb2 {[%emt 0:0:57]} Qc7 {[%emt 0:3:37]} 16. Rc1 {[%emt 0:1:49]} Ng4 {[%emt 0:0:34]} 17. Qb1 {[%emt 0:5:21]} Qa7 {[%emt 0:3:13]} 18. Nd1 {[%emt 0:0:42]
} Bxb2 {[%emt 0:0:5]} 19. Qxb2 {[%emt 0:0:6]} Rfc8 {[%emt 0:0:0]} 20. Rb1 {[%emt 0:1:1]} Ra8 {[%emt 0:0:54]} 21. Bf1 {[%emt 0:1:42]} Ne5 {[%emt 0:1:14]} 22. e4 {[%emt 0:0:15]} Nac4 {[%emt 0:2:2]} 23. Nxc4 {[%emt 0:0:0]
} bxc4 {[%emt 0:0:5]} 24. Nc3 {[%emt 0:0:6]} Qd4 {[%emt 0:0:0]} 25. a4 {[%emt 0:0:31]} Bg4 {[%emt 0:0:20]} 26. h3 {[%emt 0:0:9]} Bf3 {[%emt 0:0:32]
} 27. Re1 {[%emt 0:0:6]} f5 {[%emt 0:0:26]} 28. exf5 {[%emt 0:0:0]} gxf5 {[%emt 0:0:1]} 29. Rb7 {[%emt 0:0:6]} Be4 {[%emt 0:0:26]} 30. Re3 {[%emt 0:0:14]} Nf3+ {[%emt 0:0:18]} 31. Kh1 {[%emt 0:0:4]} Ne5+ {[%emt 0:0:21]
} 32. Kh2 {[%emt 0:0:11]} Kf8 {[%emt 0:0:11]} 33. Qc1 {[%emt 0:0:0]} Bd3 {[%emt 0:0:10]} 34. Bg2 {[%emt 0:0:9]} Rab8 {[%emt 0:0:5]} 35. Nb5 {[%emt 0:0:5]} Qc5 {[%emt 0:0:15]} 36. Rxe5 {[%emt 0:0:12]} Rxb7 {[%emt 0:0:11]
} 37. Qh6+ {[%emt 0:0:2]} Kg8 {[%emt 0:0:1]} 38. Re3 {[%emt 0:0:24]
} Kh8 {[%emt 0:0:15]} 39. Qh4 {[%emt 0:0:14]} Re8 {[%emt 0:0:0]} 40. Nd4 {[%emt 0:0:7]} Qb4 {[%emt 0:0:11]} 41. Nc6 {[%emt 0:0:12]} Qb2 {[%emt 0:0:7]} 42. Nxe7 {[%emt 0:0:4]} f4 {[%emt 0:0:12]} 43. Qxf4 {[%emt 0:0:10]
} Rbb8 {[%emt 0:0:12]} 44. Qxd6 {[%emt 0:0:10]} Rf8 {[%emt 0:0:0]} 45. f4 {[%emt 0:0:17]} Qf6 {[%emt 0:0:15]} 46. Re6 {[%emt 0:0:3]} Qg7 {[%emt 0:0:2]} 47. Qc5 {[%emt 0:0:16]} Rb2 {[%emt 0:0:10]} 48. d6 {[%emt 0:0:11]
} Bf1 {[%emt 0:0:7]} 49. Nf5 {[%emt 0:0:10]} Rxg2+ {[%emt 0:0:0]} 50. Kh1 {[%emt 0:0:0]} Qb2 {[%emt 0:0:21]} 51. Qe5+ {[%emt 0:0:21]} Qxe5 {[%emt 0:0:2]} 52. fxe5 {[%emt 0:0:1]} Rd2 {[%emt 0:0:12]} 0-1

[Event "FIDE World Rapid-ch Open 2018"]
[White "Kabanov, Nikolai"]
[Black "Ragger, Markus"]
[Site "St. Petersburg"]
[Round "1.67"]
[Annotator "ChessBase"]
[Result "0-1"]
[Date "2018.12.26"]
[WhiteElo "2450"]
[BlackElo "2687"]
[PlyCount "102"]
[TimeControl "900+10"]

1. e4 {[%emt 0:0:0]} e5 {[%emt 0:0:0]} 2. Nf3 {[%emt 0:0:0]} Nc6 {[%emt 0:0:0]
} 3. d4 {[%emt 0:0:0]} exd4 {[%emt 0:0:0]} 4. Nxd4 {[%emt 0:0:0]} Nf6 {[%emt 0:0:0]} 5. Nxc6 {[%emt 0:0:4]} bxc6 {[%emt 0:0:0]} 6. Qe2 {[%emt 0:0:5]} d5 {[%emt 0:0:3]} 7. Nd2 {[%emt 0:0:48]} Be7 {[%emt 0:0:0]} 8. Qf3 {[%emt 0:1:46]} 0-0 {[%emt 0:0:47]} 9. Bd3 {[%emt 0:0:6]} Bg4 {[%emt 0:1:33]} 10. Qg3 {[%emt 0:0:3]} Bd6 {[%emt 0:0:22]} 11. Qh4 {[%emt 0:0:2]
} h6 {[%emt 0:3:3]} 12. 0-0 {[%emt 0:0:24]} Re8 {[%emt 0:0:0]} 13. h3 {[%emt 0:0:50]} Bh5 {[%emt 0:0:31]} 14. exd5 {[%emt 0:0:30]} cxd5 {[%emt 0:0:12]} 15. Nb3 {[%emt 0:0:24]} Be2 {[%emt 0:0:17]} 16. Bxe2 {[%emt 0:2:4]
} Rxe2 {[%emt 0:0:1]} 17. Be3 {[%emt 0:1:5]} Rxc2 {[%emt 0:0:0]} 18. Nd4 {[%emt 0:0:3]} Rxb2 {[%emt 0:0:28]} 19. Nf5 {[%emt 0:0:3]} Rb4 {[%emt 0:0:27]} 20. f4 {[%emt 0:0:31]} Qd7 {[%emt 0:2:10]} 21. Nxh6+ {[%emt 0:1:3]
} gxh6 {[%emt 0:0:2]} 22. Qxf6 {[%emt 0:0:2]} Qe7 {[%emt 0:0:0]} 23. Qxe7 {[%emt 0:1:54]} Bxe7 {[%emt 0:0:1]} 24. Rac1 {[%emt 0:0:0]} Re4 {[%emt 0:0:28]} 25. Bc5 {[%emt 0:1:16]} Bf6 {[%emt 0:0:14]} 26. Rfd1 {[%emt 0:1:0]} d4 {[%emt 0:1:51]} 27. Ba3 {[%emt 0:1:6]} Rd8 {[%emt 0:0:4]
} 28. Rc6 {[%emt 0:1:2]} Kg7 {[%emt 0:1:19]} 29. Bc5 {[%emt 0:0:0]} a5 {[%emt 0:1:2]} 30. Rd3 {[%emt 0:0:8]} Rxf4 {[%emt 0:0:43]} 31. Rxc7 {[%emt 0:0:4]} Rd5 {[%emt 0:0:28]} 32. Rg3+ {[%emt 0:0:46]} Bg5 {[%emt 0:0:21]
} 33. Rd3 {[%emt 0:0:34]} Re4 {[%emt 0:0:43]} 34. Rf3 {[%emt 0:0:0]} Be3+ {[%emt 0:0:11]} 35. Kf1 {[%emt 0:0:4]} Rf4 {[%emt 0:0:0]} 36. Bb6 {[%emt 0:0:31]} Rxf3+ {[%emt 0:0:9]} 37. gxf3 {[%emt 0:0:1]} Rb5 {[%emt 0:0:1]
} 38. Ba7 {[%emt 0:0:7]} Rb2 {[%emt 0:0:33]} 39. Rd7 {[%emt 0:0:0]} Rd2 {[%emt 0:0:1]} 40. a4 {[%emt 0:0:14]} Kf6 {[%emt 0:0:1]} 41. Rd5 {[%emt 0:0:5]} Ke6 {[%emt 0:0:7]} 42. Rxa5 {[%emt 0:0:2]} Rf2+ {[%emt 0:0:20]
} 43. Ke1 {[%emt 0:0:2]} Rxf3 {[%emt 0:0:2]} 44. Rh5 {[%emt 0:0:6]
} f5 {[%emt 0:0:12]} 45. a5 {[%emt 0:0:4]} Kd5 {[%emt 0:0:12]
} 46. a6 {[%emt 0:0:8]} Ke4 {[%emt 0:0:7]} 47. Bb6 {[%emt 0:0:29]} Bf2+ {[%emt 0:0:13]
} 48. Kd1 {[%emt 0:0:9]} Ra3 {[%emt 0:0:9]} 49. Ke2 {[%emt 0:0:0]} Be3 {[%emt 0:0:14]} 50. Rh4+ {[%emt 0:0:25]} f4 {[%emt 0:0:1]} 51. Rxh6 Ke5 0-1